fUSD/lending_fUSD_20240302
["ID","MTS","AMOUNT","RATE_DAILY","PERIOD"]
[316286837,1709423550732,-1000.0,0.000229,5]
[316286838,1709423550741,-150.0,0.000229,2]
[316286839,1709423550751,-152.96464635,0.000229,2]
[316286840,1709423550760,-152.96464635,0.000229,2]
[316286841,1709423550769,-152.96464635,0.000229,2]
[316286842,1709423550779,-10383.15957237,0.000229,2]
[316286843,1709423550788,-754.44235351,0.000229,2]
[316286844,1709423550797,-173.55656145,0.000229,2]
[316286845,1709423550806,-926.99,0.00022903,2]
[316286846,1709423550816,-1216.01,0.00022903,2]
[316286847,1709423550825,-500.0,0.00022903,2]
[316286848,1709423550834,-1106.23,0.00022903,2]
[316286849,1709423550844,-1192.97,0.00022903,2]
[316286850,1709423550853,-1300.6,0.00022903,2]
[316286851,1709423550863,-1324.24,0.00022903,2]
[316286852,1709423550872,-1183.38,0.00022903,2]
[316286853,1709423550882,-2384.7,0.00022903,2]
[316286854,1709423550891,-3976.02,0.00022903,2]
[316286855,1709423550900,-26571.51,0.00022903,2]
[316286856,1709423550910,-4386.54,0.00022903,2]
[316286857,1709423550919,-1235.28,0.00022903,2]
[316286858,1709423550928,-222.02981322,0.00022903,2]
[316286859,1709423550938,-500.0,0.00022904,2]
[316286860,1709423550948,-533.34798621,0.00022904,2]
[316286861,1709423550957,-500.0,0.00022904,2]
[316286862,1709423550967,-500.0,0.00022904,2]
[316286863,1709423550976,-267.59016561,0.00022904,2]
[316286864,1709423550985,-566.12,0.00022904,2]
[316286865,1709423550994,-711.1,0.00022904,2]
[316286866,1709423551004,-500.0,0.00022904,2]
[316286867,1709423551013,-751.21,0.00022904,2]
[316286868,1709423551023,-788.58,0.00022904,2]
[316286869,1709423551032,-500.0,0.00022904,2]
[316286870,1709423551042,-500.0,0.00022904,2]
[316286871,1709423551051,-501.23,0.00022904,2]
[316286872,1709423551061,-500.0,0.00022904,2]
[316286873,1709423551069,-500.0,0.00022904,2]
[316286874,1709423551079,-500.0,0.00022904,2]
[316286875,1709423551089,-500.0,0.00022904,2]
[316286876,1709423551098,-675.64,0.00022904,2]
[316286877,1709423551107,-175.82977707,0.00022904,2]
[316286878,1709423551117,-589.87,0.00022904,2]
[316286879,1709423551126,-655.11,0.00022904,2]
[316286880,1709423551135,-170.11535977,0.00022904,2]
[316286881,1709423551145,-531.4,0.00022904,2]
[316286882,1709423551154,-539.58,0.00022904,2]
[316286883,1709423551163,-604.98,0.00022904,2]
[316286884,1709423551172,-852.68,0.00022904,2]
[316286885,1709423551182,-806.38,0.00022904,2]
[316286886,1709423551191,-500.0,0.00022904,2]
[316286887,1709423551201,-588.06,0.00022904,2]
[316286888,1709423551211,-693.54,0.00022904,2]
[316286889,1709423551221,-528.66,0.00022904,2]
[316286890,1709423551236,-500.0,0.00022904,2]
[316286891,1709423551257,-592.95,0.00022904,2]
[316286892,1709423551275,-591.46,0.00022904,2]
[316286893,1709423551294,-500.0,0.00022904,2]
[316286894,1709423551313,-981.0,0.00022904,2]
[316286895,1709423551330,-500.0,0.00022904,2]
[316286896,1709423551348,-668.33,0.00022904,2]
[316286897,1709423551367,-500.0,0.00022904,2]
[316286898,1709423551386,-776.46,0.00022904,2]
[316286899,1709423551404,-942.66,0.00022904,2]
[316286900,1709423551423,-500.0,0.00022904,2]
[316286901,1709423551440,-500.0,0.00022904,2]
[316286902,1709423551459,-592.95,0.00022904,2]
[316286903,1709423551479,-658.27,0.00022904,2]
[316286904,1709423551492,-500.0,0.00022904,2]
[316286905,1709423551509,-661.81,0.00022904,2]
[316286906,1709423551528,-638.23,0.00022904,2]
[316286907,1709423551543,-632.76,0.00022904,2]
[316286908,1709423551559,-1011.67,0.00022904,2]
[316286909,1709423551575,-705.81,0.00022904,2]
[316286910,1709423551590,-761.16,0.00022904,2]
[316286911,1709423551605,-681.48,0.00022904,2]
[316286912,1709423551620,-645.68,0.00022904,2]
[316286913,1709423551636,-815.77,0.00022904,2]
[316286914,1709423551653,-500.0,0.00022904,2]
[316286915,1709423551669,-757.46,0.00022904,2]
[316286916,1709423551684,-665.67,0.00022904,2]
[316286917,1709423551700,-540.92,0.00022904,2]
[316286918,1709423551716,-615.49,0.00022904,2]
[316286919,1709423551730,-519.48,0.00022904,2]
[316286920,1709423551746,-780.01,0.00022904,2]
[316286921,1709423551762,-588.17,0.00022904,2]
[316286922,1709423551777,-500.0,0.00022904,2]
[316286923,1709423551793,-703.13,0.00022904,2]
[316286924,1709423551809,-500.0,0.00022904,2]
[316286925,1709423551824,-500.0,0.00022904,2]
[316286926,1709423551839,-500.0,0.00022904,2]
[316286927,1709423551854,-785.8,0.00022904,2]
[316286928,1709423551870,-500.0,0.00022904,2]
[316286929,1709423551885,-500.0,0.00022904,2]
[316286930,1709423551900,-500.0,0.00022904,2]
[316286931,1709423551916,-557.5,0.00022904,2]
[316286932,1709423551931,-690.89,0.00022904,2]
[316286933,1709423551945,-512.89,0.00022904,2]
[316286934,1709423551960,-500.0,0.00022904,2]
[316286935,1709423551975,-500.0,0.00022904,2]
[316286936,1709423551991,-746.18,0.00022904,2]
[316286937,1709423552006,-745.84,0.00022904,2]
[316286938,1709423552021,-799.09,0.00022904,2]
[316286939,1709423552037,-773.11,0.00022904,2]
[316286940,1709423552051,-628.23,0.00022904,2]
[316286941,1709423552066,-500.0,0.00022904,2]
[316286942,1709423552080,-755.68,0.00022904,2]
[316286943,1709423552095,-500.0,0.00022904,2]
[316286944,1709423552108,-653.99,0.00022904,2]
[316286945,1709423552123,-622.35,0.00022904,2]
[316286946,1709423552139,-500.0,0.00022904,2]
[316286947,1709423552155,-744.21,0.00022904,2]
[316286948,1709423552171,-891.42,0.00022904,2]
[316286949,1709423552187,-632.92,0.00022904,2]
[316286950,1709423552202,-555.92,0.00022904,2]
[316286951,1709423552218,-505.86,0.00022904,2]
[316286952,1709423552236,-857.46,0.00022904,2]
[316286953,1709423552251,-540.03,0.00022904,2]
[316286954,1709423552266,-875.21,0.00022904,2]
[316286955,1709423552282,-943.88,0.00022904,2]
[316286956,1709423552297,-539.57,0.00022904,2]
[316286957,1709423552312,-500.0,0.00022904,2]
[316286958,1709423552328,-818.33,0.00022904,2]
[316286959,1709423552342,-975.82,0.00022904,2]
[316286960,1709423552358,-500.0,0.00022904,2]
[316286961,1709423552372,-926.83,0.00022904,2]
[316286962,1709423552389,-868.3,0.00022904,2]
[316286963,1709423552405,-889.72,0.00022904,2]
[316286964,1709423552420,-1090.56,0.00022904,2]
[316286965,1709423552441,-500.0,0.00022904,2]
[316286966,1709423552460,-500.0,0.00022904,2]
[316286967,1709423552475,-500.0,0.00022904,2]
[316286968,1709423552492,-625.2,0.00022904,2]
[316286969,1709423552509,-892.94,0.00022904,2]
[316286970,1709423552525,-823.51,0.00022904,2]
[316286971,1709423552540,-841.99,0.00022904,2]
[316286972,1709423552556,-844.47,0.00022904,2]
[316286973,1709423552571,-603.45,0.00022904,2]
[316286974,1709423552587,-828.59,0.00022904,2]
[316286975,1709423552602,-994.04,0.00022904,2]
[316286976,1709423552617,-796.45,0.00022904,2]
[316286977,1709423552631,-500.0,0.00022904,2]
[316286978,1709423552646,-805.22,0.00022904,2]
[316286979,1709423552661,-726.45,0.00022904,2]
[316286980,1709423552675,-802.16,0.00022904,2]
[316286981,1709423552690,-1143.99,0.00022904,2]
[316286982,1709423552706,-500.0,0.00022904,2]
[316286983,1709423552721,-1050.75,0.00022904,2]
[316286984,1709423552736,-724.97,0.00022904,2]
[316286985,1709423552751,-500.0,0.00022904,2]
[316286986,1709423552766,-1235.22,0.00022904,2]
[316286987,1709423552780,-753.15,0.00022904,2]
[316286988,1709423552796,-500.0,0.00022904,2]
[316286989,1709423552811,-1018.1,0.00022904,2]
[316286990,1709423552826,-1097.58,0.00022904,2]
[316286991,1709423552842,-223.40186564,0.00022904,2]
[316286992,1709423552858,-531.0,0.00022904,2]
[316286993,1709423552874,-951.25,0.00022904,2]
[316286994,1709423552888,-595.8857503,0.00022904,2]
[316286995,1709423552905,-544.65,0.00022904,2]
[316286996,1709423552920,-381.26336133,0.00022904,2]
[316286997,1709423552935,-589.87,0.00022904,2]
[316286998,1709423552950,-589.46,0.00022904,2]
[316286999,1709423552965,-746.67,0.00022904,2]
[316287000,1709423552980,-1099.1,0.00022904,2]
[316287001,1709423552995,-228.2,0.00022904,2]
[316287002,1709423553010,-680.35,0.00022904,2]
[316287003,1709423553026,-500.0,0.00022904,2]
[316287004,1709423553041,-538.88,0.00022904,2]
[316287005,1709423553057,-854.54,0.00022904,2]
[316287006,1709423553071,-777.27,0.00022904,2]
[316287007,1709423553086,-500.0,0.00022904,2]
[316287008,1709423553100,-778.77,0.00022904,2]
[316287009,1709423553114,-998.88,0.00022904,2]
[316287010,1709423553128,-500.0,0.00022904,2]
[316287011,1709423553143,-500.0,0.00022904,2]
[316287012,1709423553158,-1912.83,0.00022904,2]
[316287013,1709423553173,-942.93,0.00022904,2]
[316287014,1709423553187,-705.69,0.00022904,2]
[316287015,1709423553202,-726.95,0.00022904,2]
[316287016,1709423553218,-549.34,0.00022904,2]
[316287017,1709423553232,-5287.94,0.00022904,2]
[316287018,1709423553246,-500.0,0.00022904,2]
[316287019,1709423553260,-500.0,0.00022904,2]
[316287020,1709423553274,-500.0,0.00022904,2]
[316287021,1709423553287,-1192.5,0.00022904,2]
[316287022,1709423553301,-500.0,0.00022904,2]
[316287023,1709423553315,-500.0,0.00022904,2]
[316287024,1709423553330,-3573.49,0.00022904,2]
[316287025,1709423553351,-5697.41,0.00022904,2]
[316287026,1709423553366,-1270.25,0.00022904,2]
[316287027,1709423553381,-1243.11,0.00022904,2]
[316287028,1709423553395,-1242.27,0.00022904,2]
[316287029,1709423553411,-631.73,0.00022904,2]
[316287030,1709423553426,-500.0,0.00022904,2]
[316287031,1709423553443,-869.9,0.00022904,2]
[316287032,1709423553459,-2186.54,0.00022904,2]
[316287033,1709423553474,-7539.06,0.00022904,2]
[316287034,1709423553490,-1370.93,0.00022904,2]
[316287035,1709423553504,-1139.13,0.00022904,2]
[316287036,1709423553519,-634.64,0.00022904,2]
[316287037,1709423553535,-863.14,0.00022904,2]
[316287038,1709423553549,-961.47,0.00022904,2]
[316287039,1709423553564,-711.39,0.00022904,2]
[316287040,1709423553580,-500.0,0.00022904,2]
[316287041,1709423553595,-834.32,0.00022904,2]
[316287042,1709423553610,-6832.5,0.00022904,2]
[316287043,1709423553626,-3366.07,0.00022904,2]
[316287044,1709423553642,-1288.9,0.00022904,2]
[316287045,1709423553657,-4946.93,0.00022904,2]
[316287046,1709423553673,-522.25,0.00022904,2]
[316287047,1709423553994,-500.0,0.00022904,2]
[316287048,1709423554010,-721.28,0.00022904,2]
[316287049,1709423554020,-962.31,0.00022904,2]
[316287050,1709423554030,-1909.69,0.00022904,2]
[316287051,1709423554040,-3560.52,0.00022904,2]
[316287052,1709423554051,-550.31,0.00022904,2]
[316287053,1709423554060,-689.52,0.00022904,2]
[316287054,1709423554070,-500.0,0.00022904,2]
[316287055,1709423554079,-1248.35,0.00022904,2]
[316287056,1709423554088,-500.0,0.00022904,2]
[316287057,1709423554098,-47769.42,0.00022904,2]
[316287058,1709423554107,-1373.89,0.00022904,2]
[316287059,1709423554117,-896.58,0.00022904,2]
[316287060,1709423554126,-3113.71,0.00022904,2]
[316287061,1709423554135,-11055.57,0.00022904,2]
[316287062,1709423554145,-500.0,0.00022904,2]
[316287063,1709423554155,-753.35,0.00022904,2]
[316287064,1709423554164,-1220.06,0.00022904,2]
[316287065,1709423554174,-2227.7,0.00022904,2]
[316287066,1709423554184,-3628.11,0.00022904,2]
[316287067,1709423554194,-10759.78,0.00022904,2]
[316287068,1709423554203,-693.52,0.00022904,2]
[316287069,1709423554214,-10477.31,0.00022904,2]
[316287070,1709423554224,-500.0,0.00022904,2]
[316287071,1709423554233,-985.32,0.00022904,2]
[316287072,1709423554242,-748.09,0.00022904,2]
[316287073,1709423554251,-500.0,0.00022904,2]
[316287074,1709423554260,-4049.02,0.00022904,2]
[316287075,1709423554270,-1296.56,0.00022904,2]
[316287076,1709423554279,-2475.03,0.00022904,2]
[316287077,1709423554289,-523.96,0.00022904,2]
[316287078,1709423554299,-565.36,0.00022904,2]
[316287079,1709423554308,-3856.02,0.00022904,2]
[316287080,1709423554317,-1518.75,0.00022904,2]
[316287081,1709423554327,-3732.18,0.00022904,2]
[316287082,1709423554336,-1030.95,0.00022904,2]
[316287083,1709423554346,-500.0,0.00022904,2]
[316287084,1709423554356,-1244.47,0.00022904,2]
[316287085,1709423554366,-500.0,0.00022904,2]
[316287086,1709423554376,-500.0,0.00022904,2]
[316287087,1709423554386,-3066.29,0.00022904,2]
[316287088,1709423554395,-646.26,0.00022904,2]
[316287089,1709423554405,-1283.7,0.00022904,2]
[316287090,1709423554415,-2057.84,0.00022904,2]
[316287091,1709423554425,-500.0,0.00022904,2]
[316287092,1709423554435,-684.64,0.00022904,2]
[316287093,1709423554444,-1569.46,0.00022904,2]
[316287094,1709423554457,-500.0,0.00022904,2]
[316287095,1709423554468,-1753.18,0.00022904,2]
[316287096,1709423554477,-500.05,0.00022904,2]
[316287097,1709423554486,-1159.88,0.00022904,2]
[316287098,1709423554496,-2572.27,0.00022904,2]
[316287099,1709423554506,-560.66,0.00022904,2]
[316287100,1709423554514,-2967.36,0.00022904,2]
[316287101,1709423554524,-500.0,0.00022904,2]
[316287102,1709423554533,-2906.22,0.00022904,2]
[316287103,1709423554543,-500.0,0.00022904,2]
[316287104,1709423554552,-804.32,0.00022904,2]
[316287105,1709423554561,-1367.33,0.00022904,2]
[316287106,1709423554570,-13449.78,0.00022904,2]
[316287107,1709423554578,-1277.24,0.00022904,2]
[316287108,1709423554587,-2481.26,0.00022904,2]
[316287109,1709423554596,-1037.25,0.00022904,2]
[316287110,1709423554605,-500.0,0.00022904,2]
[316287111,1709423554615,-2148.68,0.00022904,2]
[316287112,1709423554624,-544.84,0.00022904,2]
[316287113,1709423554634,-502.13,0.00022904,2]
[316287114,1709423554643,-3856.28,0.00022904,2]
[316287115,1709423554652,-1119.36,0.00022904,2]
[316287116,1709423554661,-2224.81,0.00022904,2]
[316287117,1709423554671,-732.7,0.00022904,2]
[316287118,1709423554680,-500.0,0.00022904,2]
[316287119,1709423554689,-1728.95,0.00022904,2]
[316287120,1709423554699,-1358.14,0.00022904,2]
[316287121,1709423554708,-2859.7,0.00022904,2]
[316287122,1709423554718,-549.05,0.00022904,2]
[316287123,1709423554727,-1492.03,0.00022904,2]
[316287124,1709423554737,-2065.52,0.00022904,2]
[316287125,1709423554746,-5511.16,0.00022904,2]
[316287126,1709423554756,-7297.94,0.00022904,2]
[316287127,1709423554766,-836.1,0.00022904,2]
[316287128,1709423554775,-2461.87,0.00022904,2]
[316287129,1709423554784,-500.0,0.00022904,2]
[316287130,1709423554793,-3655.55,0.00022904,2]
[316287131,1709423554802,-1615.13,0.00022904,2]
[316287132,1709423554812,-742.82,0.00022904,2]
[316287133,1709423554821,-1503.7,0.00022904,2]
[316287134,1709423554830,-500.0,0.00022904,2]
[316287135,1709423554840,-573.14,0.00022904,2]
[316287136,1709423554849,-1329.14,0.00022904,2]
[316287137,1709423554858,-1731.12,0.00022904,2]
[316287138,1709423554867,-796.76,0.00022904,2]
[316287139,1709423554877,-500.0,0.00022904,2]
[316287140,1709423554886,-955.06,0.00022904,2]
[316287141,1709423554895,-710.11,0.00022904,2]
[316287142,1709423554905,-682.05,0.00022904,2]
[316287143,1709423554915,-1491.26,0.00022904,2]
[316287144,1709423554925,-5482.58,0.00022904,2]
[316287145,1709423554934,-801.98,0.00022904,2]
[316287146,1709423554943,-1720.22,0.00022904,2]
[316287147,1709423554953,-765.58,0.00022904,2]
[316287148,1709423554964,-916.07,0.00022904,2]
[316287149,1709423554973,-2041.92,0.00022904,2]
[316287150,1709423554982,-500.0,0.00022904,2]
[316287151,1709423554992,-1799.04,0.00022904,2]
[316287152,1709423555001,-1829.8,0.00022904,2]
[316287153,1709423555011,-3290.59,0.00022904,2]
[316287154,1709423555021,-2593.77,0.00022904,2]
[316287155,1709423555031,-1522.42,0.00022904,2]
[316287156,1709423555041,-500.0,0.00022904,2]
[316287157,1709423555051,-1640.92,0.00022904,2]
[316287158,1709423555062,-500.0,0.00022904,2]
[316287159,1709423555071,-2547.42,0.00022904,2]
[316287160,1709423555082,-390.90373818,0.00022904,2]
[316287161,1709423555091,-715.06,0.00022904,2]
[316287162,1709423555102,-1384.91,0.00022904,2]
[316287163,1709423555111,-6820.69,0.00022904,2]
[316287164,1709423555122,-457.6852158,0.00022904,2]
[316287165,1709423555132,-1423.64,0.00022904,2]
[316287166,1709423555142,-2034.95,0.00022904,2]
[316287167,1709423555152,-3702.27,0.00022904,2]
[316287168,1709423555162,-2626.51,0.00022904,2]
[316287169,1709423555173,-1685.69,0.00022904,2]
[316287170,1709423555183,-872.87,0.00022904,2]
[316287171,1709423555193,-500.0,0.00022904,2]
[316287172,1709423555203,-500.0,0.00022904,2]
[316287173,1709423555215,-519.69,0.00022904,2]
[316287174,1709423555225,-1209.26,0.00022904,2]
[316287175,1709423555235,-1672.63,0.00022904,2]
[316287176,1709423555245,-4218.12,0.00022904,2]
[316287177,1709423555255,-500.0,0.00022904,2]
[316287178,1709423555265,-1756.11,0.00022904,2]
[316287179,1709423555275,-1403.69,0.00022904,2]
[316287180,1709423555285,-1107.12,0.00022904,2]
[316287181,1709423555294,-799.89,0.00022904,2]
[316287182,1709423555303,-2706.18,0.00022904,2]
[316287183,1709423555312,-3237.31,0.00022904,2]
[316287184,1709423555321,-500.0,0.00022904,2]
[316287185,1709423555331,-1566.82,0.00022904,2]
[316287186,1709423555342,-1096.43,0.00022904,2]
[316287187,1709423555351,-617.94,0.00022904,2]
[316287188,1709423555361,-1164.7,0.00022904,2]
[316287189,1709423555371,-1655.27,0.00022904,2]
[316287190,1709423555380,-904.55,0.00022904,2]
[316287191,1709423555390,-500.0,0.00022904,2]
[316287192,1709423555399,-672.12,0.00022904,2]
[316287193,1709423555409,-1107.12,0.00022904,2]
[316287194,1709423555419,-1403.26,0.00022904,2]
[316287195,1709423555430,-1377.43,0.00022904,2]
[316287196,1709423555440,-1209.09,0.00022904,2]
[316287197,1709423555452,-958.68,0.00022904,2]
[316287198,1709423555464,-1612.75,0.00022904,2]
[316287199,1709423555474,-11927.14,0.00022904,2]
[316287200,1709423555484,-626.22,0.00022904,2]
[316287201,1709423555495,-1290.57,0.00022904,2]
[316287202,1709423555504,-3746.59,0.00022904,2]
[316287203,1709423555515,-1240.03,0.00022904,2]
[316287204,1709423555525,-500.0,0.00022904,2]
[316287205,1709423555535,-887.2,0.00022904,2]
[316287206,1709423555545,-10403.37,0.00022904,2]
[316287207,1709423555555,-4091.76,0.00022904,2]
[316287208,1709423555565,-703.69,0.00022904,2]
[316287209,1709423555576,-596.78,0.00022904,2]
[316287210,1709423555586,-720.52,0.00022904,2]
[316287211,1709423555596,-2883.1,0.00022904,2]
[316287212,1709423555607,-3219.57,0.00022904,2]
[316287213,1709423555617,-1520.3,0.00022904,2]
[316287214,1709423555627,-639.2,0.00022904,2]
[316287215,1709423555636,-500.0,0.00022904,2]
[316287216,1709423555646,-1534.12,0.00022904,2]
[316287217,1709423555655,-500.0,0.00022904,2]
[316287218,1709423555666,-500.0,0.00022904,2]
[316287219,1709423555676,-5863.12,0.00022904,2]
[316287220,1709423555685,-14092.54,0.00022904,2]
[316287221,1709423555695,-767.53,0.00022904,2]
[316287222,1709423555704,-2287.2,0.00022904,2]
[316287223,1709423555716,-500.0,0.0002292,2]
[316287224,1709423555725,-700.0,0.0002297,2]
[316287225,1709423555735,-700.0,0.0002297,2]
[316287226,1709423555745,-700.0,0.0002297,2]
[316287227,1709423555754,-700.0,0.0002297,2]
[316287228,1709423555764,-1200.0,0.0002297,2]
[316287229,1709423555774,-300.0,0.0002297,2]
[316287230,1709423555784,-300.0,0.0002297,2]
[316287231,1709423555794,-300.0,0.0002297,2]
[316287232,1709423555803,-300.0,0.0002297,2]
[316287233,1709423555813,-300.0,0.0002297,2]
[316287234,1709423555823,-178.021477,0.0002297,2]
[316287235,1709423555833,-469.677347,0.0002297,2]
[316287236,1709423555843,-756.297837,0.0002297,2]
[316287237,1709423555853,-2025.212046,0.0002297,2]
[316287238,1709423555863,-300.838165,0.0002297,2]
[316287239,1709423555873,-6367.258858,0.0002297,2]
[316287240,1709423555882,-2450.081757,0.0002297,2]
[316287241,1709423555892,-177.843847,0.0002297,2]
[316287242,1709423555902,-503.035706,0.0002297,2]
[316287243,1709423555912,-7049.057724,0.0002297,2]
[316287244,1709423555922,-2484.297374,0.0002297,2]
[316287245,1709423555932,-6367.258858,0.0002297,2]
[316287246,1709423555942,-503.035707,0.0002297,2]
[316287247,1709423555952,-191.96806,0.0002297,2]
[316287248,1709423555964,-1198.303027,0.0002297,2]
[316287249,1709423555974,-2640.839013,0.0002297,2]
[316287250,1709423555985,-201.214283,0.0002297,2]
[316287251,1709423555995,-1814.853954,0.0002297,2]
[316287252,1709423556005,-1198.303026,0.0002297,2]
[316287253,1709423556015,-2640.839013,0.0002297,2]
[316287254,1709423556025,-201.214282,0.0002297,2]
[316287255,1709423556035,-1814.853954,0.0002297,2]
[316287256,1709423556044,-1198.303027,0.0002297,2]
[316287257,1709423556054,-2546.903543,0.0002297,2]
[316287258,1709423556063,-167.678569,0.0002297,2]
[316287259,1709423556073,-405.04241,0.0002297,2]
[316287260,1709423556083,-222.02981322,0.00022974,2]
[316287261,1709423556092,-174234.97381026,0.00022975,2]
[316287262,1709423556102,-528707.25883679,0.00022975,2]
[316287263,1709423556112,-29473.61906186,0.00022975,2]
[316287264,1709423556121,-2849.0,0.00022978,15]
[316287265,1709423556131,-1000.0,0.00022987,3]
[316287266,1709423556141,-222.02981322,0.00022993,2]
[316287267,1709423556150,-903177.84241476,0.00022994,2]
[316287268,1709423556160,-83394.55327724,0.00022999,2]
[316287269,1709423556169,-1000.0,0.00022999,2]
[316287270,1709423556179,-222.02981322,0.00022999,2]
[316287271,1709423556189,-222.02981322,0.00022999,2]
[316287272,1709423556200,-222.02981322,0.00022999,2]
[316287273,1709423556210,-222.02981322,0.00022999,2]
[316287274,1709423556220,-222.02981322,0.00022999,2]
[316287275,1709423556229,-222.02981322,0.00022999,2]
[316287276,1709423556240,-222.02981322,0.00022999,2]
[316287277,1709423556249,-222.02981322,0.00022999,2]
[316287278,1709423556259,-222.02981322,0.00022999,2]
[316287279,1709423556269,-222.02981322,0.00022999,2]
[316287280,1709423556279,-222.02981322,0.00022999,2]
[316287281,1709423556288,-222.02981322,0.00022999,2]
[316287282,1709423556297,-222.02981322,0.00022999,2]
[316287283,1709423556306,-222.02981322,0.00022999,2]
[316287284,1709423556316,-222.02981322,0.00022999,2]
[316287285,1709423556325,-222.02981322,0.00022999,2]
[316287286,1709423556334,-222.02981322,0.00022999,2]
[316287287,1709423556343,-222.02981322,0.00022999,2]
[316287288,1709423556353,-222.02981322,0.00022999,2]
[316287289,1709423556362,-222.02981322,0.00022999,2]
[316287290,1709423556371,-222.02981322,0.00022999,2]
[316287291,1709423556381,-500.0,0.00022999,2]
[316287292,1709423556390,-9188979.07458498,0.00023,2]
[316287293,1709423557143,-838.25618828,0.00021369,2]
[316287294,1709423557163,-1330.37478925,0.00021369,2]
[316287295,1709423557799,-159.0,0.00020405,2]
[316287296,1709423557807,-91.82,0.00021369,2]
[316287297,1709423557820,-330.819999,0.00021369,2]
[316287298,1709423557832,-133.88902347,0.00021369,2]
[316287299,1709423557841,-128.92800429,0.00021369,2]
[316287300,1709423557882,-374.28199571,0.00021369,2]
[316287301,1709423557892,-764.55,0.00021369,2]
[316287302,1709423557902,-500.0,0.00021369,2]
[316287303,1709423557912,-1364.76,0.00021369,2]
[316287304,1709423557921,-500.0,0.00021369,2]
[316287305,1709423557930,-500.0,0.00021369,2]
[316287306,1709423557940,-500.0,0.00021369,2]
[316287307,1709423557950,-2725.16,0.00021479,2]
[316287308,1709423557959,-500.0,0.00021479,2]
[316287309,1709423557969,-764.55,0.00021479,2]
[316287310,1709423557979,-503.21,0.00021479,2]
[316287311,1709423557988,-1364.76,0.00021479,2]
[316287312,1709423557997,-500.0,0.00021479,2]
[316287313,1709423558007,-500.0,0.00021479,2]
[316287314,1709423558017,-723.13820619,0.00021589,2]
[316287315,1709423558029,-2002.02179381,0.00021589,2]
[316287316,1709423558039,-584.02393856,0.00021589,2]
[316287317,1709423558077,-180.52606144,0.00021589,2]
[316287318,1709423558088,-125.63106623,0.00021589,2]
[316287319,1709423558111,-267.21024299,0.00021589,2]
[316287320,1709423558798,-500.0,0.00021369,2]
[316287321,1709423558808,-502.61,0.00021369,2]
[316287322,1709423558817,-404.80554867,0.00021369,2]
[316287323,1709423558937,-682.84445133,0.00021369,2]
[316287324,1709423558947,-500.0,0.00021369,2]
[316287325,1709423558956,-500.0,0.00021369,2]
[316287326,1709423558966,-239.62054867,0.00021462,6]
[316287327,1709423559132,-500.0,0.00021369,2]
[316287328,1709423559142,-500.0,0.00021369,2]
[316287329,1709423559152,-300.80551594,0.00021369,2]
[316287330,1709423559164,-199.19448406,0.00021369,2]
[316287331,1709423559174,-114.27128381,0.00021454,6]
[316287332,1709423559186,-1119.44889305,0.00021454,6]
[316287333,1709423559196,-657.87360875,0.00021462,6]
[316287335,1709423943776,154.8320171,0.00017575,2]
[316287336,1709423943797,45.1679829,0.00017575,2]
[316287337,1709423970947,1946.8511,0.0001867,14]